bitfinex/quotes_BTCUSD_20250719
["timestamp","ask_amount","ask_price","bid_price","bid_amount"]
[1752892706939,0.18615648,118180.0,118170.0,0.28932209]
[1752892707342,0.18615648,118180.0,118170.0,0.29778411]
[1752892707897,0.18715648,118180.0,118170.0,0.29778411]
[1752892708116,0.18715648,118180.0,118170.0,0.28932209]
[1752892708921,0.18815648,118180.0,118170.0,0.28086]
[1752892709122,0.01892311,118180.0,118170.0,0.29778404]
[1752892709683,0.18815648,118180.0,118170.0,0.28086]
[1752892709903,0.18815648,118180.0,118170.0,0.10315]
[1752892711231,0.19015648,118180.0,118170.0,0.10315]
[1752892711434,0.24905144,118180.0,118170.0,0.10315]
[1752892711862,0.18815648,118180.0,118170.0,0.28932209]
[1752892712079,0.18815648,118180.0,118170.0,0.29626382]
[1752892712302,0.18169503,118180.0,118170.0,0.10315]
[1752892712522,0.18169503,118180.0,118170.0,0.06947]
[1752892713355,0.18169503,118180.0,118170.0,0.0674]
[1752892713570,0.18467503,118180.0,118170.0,0.0674]
[1752892715234,0.27043465,118180.0,118170.0,0.0674]
[1752892716127,0.17770993,118170.0,118160.0,0.03548]
[1752892716335,0.17970993,118170.0,118160.0,0.08334]
[1752892716544,0.17970993,118170.0,118160.0,0.15318651]
[1752892716744,0.17970993,118170.0,118160.0,0.17156651]
[1752892716950,0.17770993,118170.0,118160.0,0.17156651]
[1752892717801,0.18617209,118170.0,118160.0,0.34929154]
[1752892718213,0.18617209,118170.0,118160.0,0.35775442]
[1752892718443,0.18617209,118170.0,118160.0,0.56779372]
[1752892718852,0.18617209,118170.0,118160.0,0.67779372]
[1752892719060,0.18617209,118170.0,118160.0,0.4846799]
[1752892719267,0.18617209,118170.0,118160.0,0.67779372]
[1752892720190,0.18617209,118170.0,118160.0,0.58462885]
[1752892720413,0.17770993,118170.0,118160.0,0.39151503]
[1752892720638,0.17770993,118170.0,118160.0,0.57616583]
[1752892721070,0.17770993,118170.0,118160.0,0.58462885]
[1752892721250,0.17770993,118170.0,118160.0,0.39997784]
[1752892721549,0.17770993,118170.0,118160.0,0.59309166]
[1752892722529,0.17770993,118170.0,118160.0,0.60155433]
[1752892723382,0.02538599,118170.0,118160.0,0.61001692]
[1752892723544,0.04231068,118170.0,118160.0,0.61001692]
[1752892724168,0.02538592,118170.0,118160.0,0.61001692]
[1752892724550,0.03384823,118170.0,118160.0,0.61001692]
[1752892725722,0.03384816,118170.0,118160.0,0.61001692]
[1752892727621,0.02538592,118170.0,118160.0,0.61001692]
[1752892728130,0.20309634,118170.0,118160.0,0.59309166]
[1752892728571,0.03384865,118170.0,118160.0,0.60155425]
[1752892729024,0.17769482,118180.0,118170.0,0.17771]
[1752892729261,0.18615648,118180.0,118170.0,0.22252216]
[1752892729753,0.18615648,118180.0,118170.0,0.03635]
[1752892729985,0.18615648,118180.0,118170.0,0.22252238]
[1752892730210,0.00846123,118180.0,118170.0,0.23098447]
[1752892730418,0.01692232,118180.0,118170.0,0.44070193]
[1752892730628,0.03484472,118180.0,118170.0,0.44070193]
[1752892730838,0.01046102,118180.0,118170.0,0.44070193]
[1752892731065,0.03584494,118180.0,118170.0,0.44070193]
[1752892731310,0.02538342,118180.0,118170.0,0.44070193]
[1752892731441,0.0338448,118180.0,118170.0,0.44070193]
[1752892731659,0.04230632,118180.0,118170.0,0.44070193]
[1752892733146,0.01692211,118180.0,118170.0,0.44070193]
[1752892733645,0.03384479,118180.0,118170.0,0.44070193]
[1752892733833,0.04230631,118180.0,118170.0,0.24758811]
[1752892733983,0.04230631,118180.0,118170.0,0.44070193]
[1752892734389,0.03384579,118180.0,118170.0,0.440702]
[1752892734735,0.20307916,118180.0,118170.0,0.440702]
[1752892734958,0.19461793,118180.0,118170.0,0.43224005]
[1752892735619,0.19461793,118180.0,118170.0,0.23912623]
[1752892735831,0.19461793,118180.0,118170.0,0.43224005]
[1752892736277,0.19461793,118180.0,118170.0,0.44070207]
[1752892737384,0.18615648,118180.0,118170.0,0.42377796]
[1752892738949,0.21323251,118180.0,118170.0,0.24606796]
[1752892739171,0.17769496,118180.0,118170.0,0.24606796]
[1752892739630,0.17769496,118180.0,118170.0,0.05295414]
[1752892740713,0.17769496,118180.0,118170.0,0.06141652]
[1752892742004,0.17769496,118180.0,118170.0,0.25453034]
[1752892742536,0.17769496,118180.0,118170.0,0.43224027]
[1752892743179,0.16923337,118180.0,118170.0,0.24606796]
[1752892744746,0.16923337,118180.0,118170.0,0.05295414]
[1752892745004,0.16923337,118180.0,118170.0,0.24606796]
[1752892745552,0.16923337,118180.0,118170.0,0.25453034]
[1752892745767,0.16923337,118180.0,118170.0,0.26299265]
[1752892746679,0.20339861,118180.0,118170.0,0.26299265]
[1752892747012,0.20339861,118180.0,118170.0,0.26316848]
[1752892747420,0.16923337,118180.0,118170.0,0.26316848]
[1752892748889,0.16923337,118180.0,118170.0,0.24624379]
[1752892749511,0.17135337,118180.0,118170.0,0.24624379]
[1752892749670,0.17135337,118180.0,118170.0,0.23104379]
[1752892750525,0.17135337,118180.0,118170.0,0.21514379]
[1752892750752,0.17135337,118180.0,118170.0,0.21196379]
[1752892751385,0.22505958,118180.0,118170.0,0.21196379]
[1752892754832,0.17135337,118180.0,118170.0,0.21196379]
[1752892755247,0.17455337,118180.0,118170.0,0.21196379]
[1752892755720,0.17135337,118180.0,118170.0,0.21196379]
[1752892756402,0.17135337,118180.0,118170.0,0.22042617]
[1752892756656,0.17135337,118180.0,118170.0,0.21196379]
[1752892758980,0.17135337,118180.0,118170.0,0.22042617]
[1752892759704,0.17135337,118180.0,118170.0,0.22888848]
[1752892759918,0.17135337,118180.0,118170.0,0.39813617]
[1752892761222,0.17135337,118180.0,118170.0,0.22042617]
[1752892762031,0.17135337,118180.0,118170.0,0.01867414]
[1752892762184,0.17135337,118180.0,118170.0,0.20989379]
[1752892762390,0.17455337,118180.0,118170.0,0.20989379]
[1752892763063,0.17455337,118180.0,118170.0,0.01660414]
[1752892763267,0.17455337,118180.0,118170.0,0.20989379]
[1752892764730,0.17455337,118180.0,118170.0,0.01660414]
[1752892764932,0.17455337,118180.0,118170.0,0.20989379]
[1752892766342,0.17135337,118180.0,118170.0,0.20989379]
[1752892768813,0.17135337,118180.0,118170.0,0.21204379]
[1752892769238,0.17135337,118180.0,118170.0,0.23048379]
[1752892773113,0.17135337,118180.0,118170.0,0.23894617]
[1752892773335,0.17135337,118180.0,118170.0,0.23048379]
[1752892774071,0.17981496,118180.0,118170.0,0.47597037]
[1752892774300,0.01692297,118180.0,118170.0,0.49973253]
[1752892774570,0.02538463,118180.0,118170.0,0.49973253]
[1752892774785,0.02538463,118180.0,118170.0,0.50819462]
[1752892774997,0.02538463,118180.0,118170.0,0.51665657]
[1752892775448,0.194618,118180.0,118170.0,0.50819462]
[1752892775863,0.18615662,118180.0,118170.0,0.23020421]
[1752892776075,0.17769503,118180.0,118170.0,0.40819386]
[1752892776289,0.17769503,118180.0,118170.0,0.04565652]
[1752892776498,0.17133337,118180.0,118170.0,0.23894617]
[1752892777309,0.17133337,118180.0,118170.0,0.23048379]
[1752892777945,0.17133337,118180.0,118170.0,0.23894617]
[1752892779020,0.17133337,118180.0,118170.0,0.24740848]
[1752892779603,0.16923337,118180.0,118170.0,0.43358057]
[1752892780032,0.16923337,118180.0,118170.0,0.44204259]
[1752892780033,0.17769489,118180.0,118170.0,0.44204259]
[1752892781445,0.17769489,118180.0,118170.0,0.22336652]
[1752892781657,0.17979489,118180.0,118170.0,0.41665617]
[1752892781873,0.17133337,118180.0,118170.0,0.02199414]
[1752892782118,0.22829258,118180.0,118170.0,0.20989379]
[1752892782338,0.17458337,118180.0,118170.0,0.20989379]
[1752892782556,0.17458337,118180.0,118170.0,0.21835617]
[1752892782769,0.17458337,118180.0,118170.0,0.20989379]
[1752892783434,0.17458337,118180.0,118170.0,0.21835617]
[1752892783669,0.17458337,118180.0,118170.0,0.20989379]
[1752892783882,0.17133337,118180.0,118170.0,0.20989379]
[1752892785135,0.64822188,118180.0,118170.0,0.08296414]
[1752892786284,0.45493223,118180.0,118170.0,0.08296414]
[1752892788147,0.26164258,118180.0,118170.0,0.08296414]
[1752892788567,0.26164258,118180.0,118170.0,0.27625379]
[1752892788568,0.17133337,118180.0,118170.0,0.27625379]
[1752892788937,0.17133337,118180.0,118170.0,0.27840379]
[1752892790830,0.17458337,118180.0,118170.0,0.27625379]
[1752892798276,0.17458337,118180.0,118170.0,0.08296414]
[1752892799418,0.17458337,118180.0,118170.0,0.27625379]
[1752892800255,0.17133337,118180.0,118170.0,0.27625379]
[1752892800694,0.17133337,118180.0,118170.0,0.08510414]
[1752892801125,0.17133337,118180.0,118170.0,0.27839379]
[1752892801559,0.17133337,118180.0,118170.0,0.28156379]
[1752892801785,0.00846152,118180.0,118170.0,0.49157372]
[1752892801978,0.01692283,118180.0,118170.0,0.50849769]
[1752892802227,0.02538442,118180.0,118170.0,0.50849769]
[1752892802466,0.20307945,118180.0,118170.0,0.49157372]
[1752892802679,0.19461814,118180.0,118170.0,0.49157372]
[1752892802910,0.02538477,118180.0,118170.0,0.49157372]
[1752892803132,0.02538477,118180.0,118170.0,0.50849769]
[1752892804893,0.19461814,118180.0,118170.0,0.49157372]
[1752892805133,0.18615662,118180.0,118170.0,0.49157372]
[1752892805746,0.17769503,118180.0,118170.0,0.49157372]
[1752892806402,0.00846145,118180.0,118170.0,0.50849776]
[1752892806603,0.0253842,118180.0,118170.0,0.51695964]
[1752892806817,0.03384579,118180.0,118170.0,0.51695964]
[1752892808464,0.04230745,118180.0,118170.0,0.51695964]
[1752892808876,0.04230745,118180.0,118170.0,0.50849776]
[1752892809291,0.20307959,118180.0,118170.0,0.50003581]
[1752892809833,0.19461814,118180.0,118170.0,0.50003581]
[1752892809997,0.19461814,118180.0,118170.0,0.61003581]
[1752892810805,0.02538477,118180.0,118170.0,0.61003581]
[1752892811017,0.02538477,118180.0,118170.0,0.61849769]
[1752892811223,0.02538442,118180.0,118170.0,0.61849769]
[1752892812565,0.03384608,118180.0,118170.0,0.61849769]
[1752892812833,0.03384608,118180.0,118170.0,0.61849783]
[1752892813053,0.20307945,118180.0,118170.0,0.60157372]
[1752892813266,0.01692139,118190.0,118180.0,0.21755634]
[1752892813484,0.03384264,118190.0,118180.0,0.6179068]
[1752892813698,0.02538184,118190.0,118180.0,0.6179068]
[1752892813921,0.16919042,118210.0,118180.0,0.6635552]
[1752892814133,0.18612455,118200.0,118190.0,0.46868958]
[1752892814332,0.17766475,118200.0,118190.0,0.49092104]
[1752892814552,0.17766475,118200.0,118190.0,0.49938163]
[1752892816131,0.17766475,118200.0,118190.0,0.48246038]
[1752892816542,0.16920473,118200.0,118190.0,0.48246038]
[1752892817662,0.16920473,118200.0,118190.0,0.47399958]
[1752892818279,0.16920473,118200.0,118190.0,0.40767958]
[1752892818491,0.16920473,118200.0,118190.0,0.28111965]
[1752892819504,0.17130473,118200.0,118190.0,0.26174965]
[1752892820303,0.41828486,118200.0,118190.0,0.06632]
[1752892820515,0.45230486,118200.0,118190.0,0.06632]
[1752892820944,0.39861438,118200.0,118190.0,0.06632]
[1752892821163,0.38291438,118200.0,118190.0,0.06632]
[1752892821647,0.17442473,118200.0,118190.0,0.06632]
[1752892822520,0.36771438,118200.0,118190.0,0.06632]
[1752892823761,0.38291438,118200.0,118190.0,0.06632]
[1752892824060,0.39861438,118200.0,118190.0,0.06632]
[1752892824298,0.17767985,118190.0,118180.0,0.01937]
[1752892824514,0.17769489,118180.0,118170.0,0.05194414]
[1752892824740,0.17968489,118180.0,118170.0,0.08494414]
[1752892824996,0.17968489,118180.0,118170.0,0.27823379]
[1752892825237,0.17968489,118180.0,118170.0,0.29433379]
[1752892825510,0.17968489,118180.0,118170.0,0.27823379]
[1752892825908,0.17968489,118180.0,118170.0,0.29737379]
[1752892826361,0.17968489,118180.0,118170.0,0.23105379]
[1752892826553,0.17968489,118180.0,118170.0,0.21695379]
[1752892827001,0.17968489,118180.0,118170.0,0.02366414]
[1752892827240,0.17968489,118180.0,118170.0,0.01860414]
[1752892827241,0.44232844,118180.0,118170.0,0.01860414]
[1752892827459,0.44232844,118180.0,118170.0,0.08492414]
[1752892827718,0.21380489,118180.0,118170.0,0.08492414]
[1752892828354,0.21380489,118180.0,118170.0,0.01860414]
[1752892829412,0.18290489,118180.0,118170.0,0.01860414]
[1752892829616,0.18290489,118180.0,118170.0,0.08488414]
[1752892829792,0.17968489,118180.0,118170.0,0.08288414]
[1752892830003,0.17968489,118180.0,118170.0,0.08490414]
[1752892832829,0.18816675,118180.0,118170.0,0.08490414]
[1752892838446,0.19138675,118180.0,118170.0,0.08288414]
[1752892845160,0.22268675,118180.0,118170.0,0.08288414]
[1752892847076,0.41602562,118180.0,118170.0,0.08288414]
[1752892847520,0.41602562,118180.0,118170.0,0.01660414]
[1752892847731,0.77710889,118180.0,118170.0,0.08288414]
[1752892848149,0.80252089,118180.0,118170.0,0.08288414]
[1752892848370,0.60918202,118180.0,118170.0,0.08288414]
[1752892848872,0.80252089,118180.0,118170.0,0.08288414]
[1752892849544,0.80252089,118180.0,118170.0,0.01660414]
[1752892849977,0.61018202,118180.0,118170.0,0.01660414]
[1752892850185,0.61118202,118180.0,118170.0,0.01660414]
[1752892851710,0.54348875,118180.0,118170.0,0.01660414]
[1752892856183,0.60972875,118180.0,118170.0,0.01660414]
[1752892860014,0.41638988,118180.0,118170.0,0.01660414]
[1752892860172,0.60972875,118180.0,118170.0,0.01660414]
[1752892861468,0.54348875,118180.0,118170.0,0.01660414]
[1752892861677,0.41638988,118180.0,118170.0,0.01660414]
[1752892861894,0.60577581,118180.0,118170.0,0.01660414]
[1752892862084,0.38186988,118180.0,118170.0,0.01660414]
[1752892862319,0.38186988,118180.0,118170.0,0.03461414]
[1752892862548,0.31562988,118180.0,118170.0,0.03461414]
[1752892862768,0.18817675,118180.0,118170.0,0.31330301]
[1752892862977,0.1966382,118180.0,118170.0,0.69281397]
[1752892863186,0.01046123,118180.0,118170.0,0.70973787]
[1752892863402,0.01046102,118180.0,118170.0,0.70973787]
[1752892863867,0.002,118180.0,118170.0,0.70973787]
[1752892864076,0.002,118180.0,118170.0,0.79524815]
[1752892865178,0.002,118180.0,118170.0,0.79503333]
[1752892865811,0.001,118180.0,118170.0,0.79503333]
[1752892866050,0.01792218,118180.0,118170.0,0.79503333]
[1752892866260,0.01792218,118180.0,118170.0,0.79703333]
[1752892866711,0.00946102,118180.0,118170.0,0.79703333]
[1752892867332,0.01792211,118180.0,118170.0,0.79703333]
[1752892867539,0.00946102,118180.0,118170.0,0.79703333]
[1752892867955,0.01692211,118180.0,118170.0,0.79703333]
[1752892869419,0.02538342,118180.0,118170.0,0.79703333]
[1752892870307,0.03384487,118180.0,118170.0,0.79703333]
[1752892870731,0.04230639,118180.0,118170.0,0.79703333]
[1752892871155,0.03384487,118180.0,118170.0,0.79703333]
[1752892872230,0.04230639,118180.0,118170.0,0.79703333]
[1752892872884,0.03384487,118180.0,118170.0,0.79703333]
[1752892876065,0.02538342,118180.0,118170.0,0.79703333]
[1752892876290,0.03384487,118180.0,118170.0,0.79703333]
[1752892876790,0.03384487,118180.0,118170.0,0.79695333]
[1752892877313,0.19460082,118190.0,118180.0,0.21715634]
[1752892877493,0.02538149,118190.0,118180.0,0.42085896]
[1752892877702,0.02538149,118190.0,118180.0,0.42406896]
[1752892877957,0.03384229,118190.0,118180.0,0.42406896]
[1752892879219,0.02538149,118190.0,118180.0,0.42406896]
[1752892880688,0.03384229,118190.0,118180.0,0.42406896]
[1752892882512,0.02538149,118190.0,118180.0,0.42406896]
[1752892884044,0.03384229,118190.0,118180.0,0.42406896]
[1752892884508,0.02538149,118190.0,118180.0,0.42406896]
[1752892885023,0.03384229,118190.0,118180.0,0.42406896]
[1752892885236,0.02538149,118190.0,118180.0,0.42406896]
[1752892885834,0.02538142,118190.0,118180.0,0.42406896]
[1752892886030,0.01692083,118190.0,118180.0,0.42406896]
[1752892886834,0.02538149,118190.0,118180.0,0.42406896]
[1752892887054,0.03384229,118190.0,118180.0,0.6172878]
[1752892893846,0.04230317,118190.0,118180.0,0.6172878]
[1752892894053,0.03384229,118190.0,118180.0,0.6172878]
[1752892894265,0.02538149,118190.0,118180.0,0.6172878]
[1752892894865,0.03384222,118190.0,118180.0,0.6172878]
[1752892895409,0.01692083,118190.0,118180.0,0.6172878]
[1752892895615,0.02538135,118190.0,118180.0,0.6172878]
[1752892896575,0.03384201,118190.0,118180.0,0.6172878]
[1752892897215,0.18603574,118200.0,118190.0,0.18614044]
[1752892897435,0.18603574,118200.0,118190.0,0.47568611]
[1752892897436,0.02529096,118200.0,118190.0,0.47568611]
[1752892897873,0.02529096,118200.0,118190.0,0.49208611]
[1752892898071,0.03375062,118200.0,118190.0,0.50054656]
[1752892898917,0.03475062,118200.0,118190.0,0.50054656]
[1752892899135,0.0347504,118200.0,118190.0,0.50054656]
[1752892899746,0.04321049,118200.0,118190.0,0.50054656]
[1752892900348,0.04421049,118200.0,118190.0,0.50054656]
[1752892900754,0.04421049,118200.0,118190.0,0.29886096]
[1752892900755,0.05267065,118200.0,118190.0,0.29886096]
[1752892900955,0.04421092,118200.0,118190.0,0.48362559]
[1752892902007,0.04421092,118200.0,118190.0,0.46722559]
[1752892903061,0.04421092,118200.0,118190.0,0.47568611]
[1752892903416,0.05267115,118200.0,118190.0,0.47568611]
[1752892903953,0.02729024,118200.0,118190.0,0.47568611]
[1752892904160,0.03575019,118200.0,118190.0,0.48414656]
[1752892906019,0.04421028,118200.0,118190.0,0.48414656]
[1752892906542,0.03575019,118200.0,118190.0,0.29092141]
[1752892906780,0.04421028,118200.0,118190.0,0.48414656]
[1752892907274,0.03575019,118200.0,118190.0,0.48414656]
[1752892913884,0.04421021,118200.0,118190.0,0.48414656]
[1752892916104,0.02729024,118200.0,118190.0,0.48414656]
[1752892916839,0.01883044,118200.0,118190.0,0.48414656]
[1752892916997,0.02729017,118200.0,118190.0,0.48414656]
[1752892917206,0.03575004,118200.0,118190.0,0.48414656]
[1752892918264,0.01883058,118200.0,118190.0,0.48414656]
[1752892918676,0.01883051,118200.0,118190.0,0.48414656]
[1752892919307,0.01883051,118200.0,118190.0,0.61004656]
[1752892919894,0.03575033,118200.0,118190.0,0.61004656]
[1752892920094,0.02729031,118200.0,118190.0,0.61004656]
[1752892920334,0.01045959,118200.0,118190.0,0.61004656]
[1752892920523,0.01045959,118200.0,118190.0,0.88878199]
[1752892920524,0.002,118200.0,118190.0,0.88878199]
[1752892921608,0.001,118200.0,118190.0,0.88878199]
[1752892922816,0.04229564,118210.0,118200.0,0.20998457]
[1752892923016,0.04244499,118210.0,118200.0,0.66767487]
[1752892923219,0.21163606,118210.0,118200.0,0.66767501]
[1752892923430,0.21163606,118210.0,118200.0,0.67613481]
[1752892923639,0.21163606,118210.0,118200.0,0.48290966]
[1752892924564,0.20317712,118210.0,118200.0,0.48290966]
[1752892924772,0.19471803,118210.0,118200.0,0.47444986]
[1752892925180,0.19471803,118210.0,118200.0,0.46598999]
[1752892925419,0.19471803,118210.0,118200.0,0.47444986]
[1752892927640,0.00014935,118210.0,118200.0,0.76164502]
[1752892927851,0.00014935,118210.0,118200.0,1.37914668]
[1752892929193,0.00014935,118210.0,118200.0,1.18668927]
[1752892929592,0.00014935,118210.0,118200.0,1.18968927]
[1752892930001,0.00014935,118210.0,118200.0,1.18668927]
[1752892930139,0.00014935,118210.0,118200.0,1.18568927]
[1752892930528,0.00014935,118210.0,118200.0,1.19468927]
[1752892939696,0.00014935,118210.0,118200.0,1.19456927]
[1752892939946,0.00014935,118210.0,118200.0,1.12679276]
[1752892950978,0.00014935,118210.0,118200.0,1.319901]
[1752892954949,0.00014935,118210.0,118200.0,1.34471074]
[1752892965112,0.00014935,118210.0,118200.0,0.76538446]
[1752892965337,0.00014935,118210.0,118200.0,1.34471074]
[1752892977939,0.00014935,118210.0,118200.0,1.15160198]
[1752892978183,0.00014935,118210.0,118200.0,1.34471074]
[1752892980582,0.00215935,118210.0,118200.0,1.11645198]
[1752892980789,0.02035935,118210.0,118200.0,1.11430198]
[1752892981206,0.23928633,118210.0,118200.0,1.00685271]
[1752892981396,0.23928633,118210.0,118200.0,1.19103258]
[1752892981521,0.23082746,118210.0,118200.0,0.98946395]
[1752892981737,0.0531776,118210.0,118200.0,1.19945253]
[1752892981953,0.06163697,118210.0,118200.0,1.20491226]
[1752892982369,0.0531776,118210.0,118200.0,1.20491226]
[1752892982575,0.05317753,118210.0,118200.0,1.13323226]
[1752892982781,0.05317753,118210.0,118200.0,1.19891226]
[1752892982990,0.05317753,118210.0,118200.0,1.20291226]
[1752892983258,0.06163683,118210.0,118200.0,1.20291226]
[1752892983468,0.05317753,118210.0,118200.0,1.20491226]
[1752892983799,0.0616369,118210.0,118200.0,1.20491226]
[1752892984193,0.06163683,118210.0,118200.0,1.20491226]
[1752892984391,0.0700962,118210.0,118200.0,1.20491226]
[1752892985086,0.06163683,118210.0,118200.0,1.20491226]
[1752892985448,0.0700962,118210.0,118200.0,1.20491226]
[1752892986170,0.07855572,118210.0,118200.0,1.20491226]
[1752892986501,0.0700962,118210.0,118200.0,1.20491226]
[1752892986794,0.07855564,118210.0,118200.0,1.20491226]
[1752892987944,0.07855564,118210.0,118200.0,0.81869474]
[1752892988175,0.07855564,118210.0,118200.0,1.20491226]
[1752892988969,0.0700962,118210.0,118200.0,1.20491226]
[1752892989885,0.06163683,118210.0,118200.0,1.20491226]
[1752892990311,0.0700962,118210.0,118200.0,1.20491226]
[1752892993692,0.07855564,118210.0,118200.0,1.20491226]
[1752892994135,0.23928704,118210.0,118200.0,1.19645253]
[1752892994407,0.23928704,118210.0,118200.0,1.18799266]
[1752892994408,0.23082788,118210.0,118200.0,1.18799266]
[1752892994624,0.23082788,118210.0,118200.0,1.19645246]
[1752892994887,0.06163746,118210.0,118200.0,1.20491219]
[1752892996185,0.05317767,118210.0,118200.0,1.20491219]
[1752892996380,0.04273661,118210.0,118200.0,1.20491219]
[1752892996598,0.04273654,118210.0,118200.0,1.20491219]
[1752892997038,0.05119591,118210.0,118200.0,0.81869467]
[1752892997248,0.05119591,118210.0,118200.0,1.19645246]
[1752892997515,0.23568698,118210.0,118200.0,1.18799266]
[1752892997733,0.23868698,118210.0,118200.0,1.19645253]
[1752892998688,0.23022789,118210.0,118200.0,1.17107269]
[1752892998908,0.22176866,118210.0,118200.0,1.17953278]
[1752892999124,0.22176866,118210.0,118200.0,1.18799265]
[1752893000012,0.22176866,118210.0,118200.0,1.19645245]
[1752893000229,0.05257824,118210.0,118200.0,1.20491218]
[1752893000750,0.05257824,118210.0,118200.0,0.81869466]
[1752893000986,0.05257824,118210.0,118200.0,1.20491218]
[1752893001150,0.05257824,118210.0,118200.0,1.19645245]
[1752893001315,0.22176866,118210.0,118200.0,1.19645245]
[1752893001530,0.22176866,118210.0,118200.0,1.13077245]
[1752893001806,0.22176866,118210.0,118200.0,1.19641245]
[1752893003164,0.22176866,118210.0,118200.0,1.17949278]
[1752893003533,0.22176866,118210.0,118200.0,1.1879528]
[1752893004354,0.22176866,118210.0,118200.0,0.80173528]
[1752893004576,0.22176866,118210.0,118200.0,1.1879528]
[1752893005010,0.22176866,118210.0,118200.0,0.7823128]
[1752893005223,0.22176866,118210.0,118200.0,0.8479128]
[1752893005355,0.22176866,118210.0,118200.0,0.116]
[1752893005560,0.27171465,118210.0,118200.0,0.37470876]
[1752893006216,0.21330929,118210.0,118200.0,0.37070876]
[1752893007303,0.21330929,118210.0,118200.0,0.36870876]
[1752893007697,0.21330929,118210.0,118200.0,0.56281752]
[1752893008323,0.21330929,118210.0,118200.0,0.56681752]
[1752893009069,0.21330929,118210.0,118200.0,0.57527775]
[1752893009731,0.22176859,118210.0,118200.0,0.76986239]
[1752893009927,0.22176859,118210.0,118200.0,0.76986254]
[1752893010392,0.22176859,118210.0,118200.0,0.76140259]
[1752893010607,0.22176859,118210.0,118200.0,0.37518507]
[1752893010958,0.02581844,118210.0,118200.0,0.86579255]
[1752893011154,0.00014935,118210.0,118200.0,1.14592782]
[1752893011372,0.19471724,118210.0,118200.0,0.90297927]
[1752893011582,0.2228383,118210.0,118200.0,0.26611028]
[1752893011798,0.2228383,118210.0,118200.0,0.1806]
[1752893012012,0.28135066,118210.0,118200.0,0.1806]
[1752893012221,0.28135066,118210.0,118200.0,0.37370876]
[1752893012441,0.2228383,118210.0,118200.0,0.1806]
[1752893012656,0.2228383,118210.0,118200.0,0.37370876]
[1752893012866,0.2228383,118210.0,118200.0,0.115]
[1752893013076,0.2228383,118210.0,118200.0,0.1806]
[1752893014835,0.2228383,118210.0,118200.0,0.37370876]
[1752893015007,0.2228383,118210.0,118200.0,0.1806]
[1752893015463,0.2228383,118210.0,118200.0,0.1766]
[1752893015617,0.26203978,118210.0,118200.0,0.1786]
[1752893016724,0.26203978,118210.0,118200.0,0.1776]
[1752893017860,0.2228383,118210.0,118200.0,0.43859102]
[1752893018787,0.2228383,118210.0,118200.0,0.1776]
[1752893018986,0.2228383,118210.0,118200.0,0.37081451]
[1752893020034,0.24826946,118210.0,118200.0,0.1776]
[1752893021000,0.24826946,118210.0,118200.0,0.37081451]
[1752893021972,0.24826946,118210.0,118200.0,0.1776]
[1752893022208,0.24826946,118210.0,118200.0,0.37081451]
[1752893022685,0.2228383,118210.0,118200.0,0.36372512]
[1752893023101,0.2228383,118210.0,118200.0,0.55693963]
[1752893023512,0.21437914,118210.0,118200.0,0.18606023]
[1752893023737,0.44679513,118210.0,118200.0,0.1776]
[1752893024425,0.47219913,118210.0,118200.0,0.1776]
[1752893024640,0.30462893,118210.0,118200.0,0.1776]
[1752893024836,0.49784344,118210.0,118200.0,0.1776]
[1752893025327,0.49784344,118210.0,118200.0,0.112]
[1752893025545,0.49784344,118210.0,118200.0,0.17776]
[1752893025754,0.49784344,118210.0,118200.0,0.112]
[1752893026173,0.30462893,118210.0,118200.0,0.112]
[1752893026628,0.49784344,118210.0,118200.0,0.112]
[1752893026832,0.49784344,118210.0,118200.0,0.002]
[1752893027223,0.26542745,118210.0,118200.0,0.06977651]
[1752893027698,0.26542745,118210.0,118200.0,0.06777651]
[1752893027932,0.26542745,118210.0,118200.0,0.001]
[1752893035442,0.04448188,118210.0,118200.0,0.36341924]
[1752893035656,0.02753732,118210.0,118200.0,0.36853924]
[1752893035869,0.02753732,118210.0,118200.0,0.37390947]
[1752893036106,0.22240242,118210.0,118200.0,0.17223473]
[1752893036305,0.21707326,118210.0,118200.0,0.17020473]
[1752893036730,0.20861389,118210.0,118200.0,0.001]
[1752893036943,0.24011389,118210.0,118200.0,0.001]
[1752893037578,0.30599389,118210.0,118200.0,0.001]
[1752893044890,0.33139789,118210.0,118200.0,0.001]
[1752893049136,0.52463339,118210.0,118200.0,0.001]
[1752893050187,0.62468452,118210.0,118200.0,0.001]
[1752893053858,0.43144902,118210.0,118200.0,0.001]
[1752893054269,0.62468452,118210.0,118200.0,0.001]
[1752893054624,0.43144902,118210.0,118200.0,0.001]
[1752893054768,0.62468452,118210.0,118200.0,0.001]
[1752893055788,0.43144902,118210.0,118200.0,0.001]
[1752893056001,0.62468452,118210.0,118200.0,0.001]
[1752893058177,0.43144902,118210.0,118200.0,0.001]
[1752893058351,0.62468452,118210.0,118200.0,0.001]
[1752893058778,0.43144902,118210.0,118200.0,0.001]
[1752893058993,0.62468452,118210.0,118200.0,0.001]
[1752893062028,0.43144902,118210.0,118200.0,0.001]
[1752893062261,0.62468452,118210.0,118200.0,0.001]
[1752893065871,0.59928052,118210.0,118200.0,0.001]
[1752893074478,0.58318052,118210.0,118200.0,0.001]
[1752893075454,0.40614502,118210.0,118200.0,0.001]
[1752893075666,0.59938052,118210.0,118200.0,0.001]
[1752893076078,0.62478752,118210.0,118200.0,0.001]
[1752893078845,0.43155202,118210.0,118200.0,0.001]
[1752893079082,0.62478752,118210.0,118200.0,0.001]
[1752893085988,0.43155202,118210.0,118200.0,0.001]
[1752893086284,0.62478752,118210.0,118200.0,0.001]
[1752893087767,0.43155202,118210.0,118200.0,0.001]
[1752893088007,0.62478752,118210.0,118200.0,0.001]
[1752893088546,1.15802302,118210.0,118200.0,0.001]
[1752893089151,0.96478752,118210.0,118200.0,0.001]
[1752893089927,0.96478752,118210.0,118180.0,0.08357651]
[1752893089928,0.18614044,118190.0,118180.0,0.08357651]
[1752893090130,0.28731618,118190.0,118180.0,0.10499651]
[1752893090371,0.28731618,118190.0,118180.0,0.29823201]
[1752893091321,0.29565478,118190.0,118180.0,0.29823201]
[1752893091469,0.23001478,118190.0,118180.0,0.29923201]
[1752893091865,0.19447904,118190.0,118180.0,0.67016247]
[1752893092086,0.00014935,118210.0,118200.0,0.04961982]
[1752893092302,0.00014935,118210.0,118200.0,1.0392978]
[1752893092730,0.00214935,118210.0,118200.0,0.8460623]
[1752893093643,0.00014935,118210.0,118200.0,0.8460623]
[1752893093831,0.00014935,118210.0,118200.0,0.8480623]
[1752893094034,0.00014935,118210.0,118200.0,0.8470623]
[1752893094439,0.00014935,118210.0,118200.0,0.8510623]
[1752893094654,0.00860822,118210.0,118200.0,0.8510623]
[1752893095063,0.00860822,118210.0,118200.0,0.85083934]
[1752893095267,0.0255264,118210.0,118200.0,0.7005033]
[1752893095475,0.0255264,118210.0,118200.0,0.78302298]
[1752893095855,0.01706724,118210.0,118200.0,0.78302298]
[1752893097095,0.02552633,118210.0,118200.0,0.78302298]
[1752893097805,0.00860822,118210.0,118200.0,0.78302298]
[1752893098168,0.01706724,118210.0,118200.0,0.78302298]